bitfinex/quotes_BTCUSD_20251004
["timestamp","ask_amount","ask_price","bid_price","bid_amount"]
[1759617819065,0.19521782,122270.0,122260.0,3.892935]
[1759617819278,0.19521782,122270.0,122260.0,0.23012]
[1759617824314,0.19521782,122270.0,122260.0,0.3937058]
[1759617846620,0.19521782,122270.0,122260.0,0.23012]
[1759617847241,0.19521782,122270.0,122260.0,0.3937058]
[1759617847444,0.23896848,122270.0,122260.0,0.3937058]
[1759617850499,0.23896848,122270.0,122260.0,0.23012]
[1759617850829,0.23896848,122270.0,122260.0,0.3937058]
[1759617854407,0.19521782,122270.0,122260.0,0.3937058]
[1759617864866,0.19219782,122270.0,122260.0,0.3937058]
[1759617865336,0.19543782,122270.0,122260.0,0.3937058]
[1759617876698,0.19219782,122270.0,122260.0,4.0565208]
[1759617876926,0.0265454,122270.0,122260.0,4.0565208]
[1759617877187,0.16557242,122270.0,122260.0,3.85094516]
[1759617877436,0.002,122270.0,122260.0,4.16606516]
[1759617894497,0.002,122270.0,122260.0,4.67904116]
[1759617899591,0.002,122270.0,122260.0,4.36392116]
[1759617899834,0.002,122270.0,122260.0,4.60587148]
[1759617900456,0.07054734,122280.0,122270.0,0.16357242]
[1759617900603,0.07054734,122280.0,122270.0,4.297921]
[1759617901226,0.07054734,122280.0,122270.0,4.24913029]
[1759617901554,0.07054734,122280.0,122270.0,4.25013029]
[1759617902443,0.07154734,122280.0,122270.0,4.25013029]
[1759617903476,0.07154734,122280.0,122270.0,4.26620947]
[1759617919474,0.07154734,122280.0,122270.0,4.33954099]
[1759617926918,0.23002284,122310.0,122290.0,0.16354567]
[1759617927094,0.23002284,122310.0,122300.0,0.24639322]
[1759617927328,0.23506284,122310.0,122300.0,3.892855]
[1759617927499,0.23587785,122310.0,122300.0,0.23004]
[1759617927676,0.1693802,122310.0,122300.0,0.23004]
[1759617928090,0.1698716,122310.0,122300.0,0.23004]
[1759617928301,0.1858716,122310.0,122300.0,0.23004]
[1759617929131,0.02234641,122310.0,122300.0,0.23004]
[1759617945599,0.01940641,122310.0,122300.0,0.39357229]
[1759617945811,0.01730641,122310.0,122300.0,0.39357229]
[1759617946452,0.00130641,122310.0,122300.0,0.39357229]
[1759617946884,0.01330641,122310.0,122300.0,0.39357229]
[1759617953750,0.01330641,122310.0,122300.0,0.41810966]
[1759617954079,0.01330641,122310.0,122300.0,0.18806966]
[1759617954495,0.01543641,122310.0,122300.0,0.50306966]
[1759617954703,0.01543641,122310.0,122300.0,0.18806966]
[1759617954860,0.01543641,122310.0,122300.0,0.41810966]
[1759617955080,0.01845641,122310.0,122300.0,0.08496]
[1759617955255,0.01845641,122310.0,122300.0,0.26484551]
[1759617955454,0.01845641,122310.0,122300.0,0.24849229]
[1759617956112,0.01845641,122310.0,122300.0,0.16353229]
[1759617956415,0.01845641,122310.0,122300.0,0.47853229]
[1759617960039,0.01543641,122310.0,122300.0,0.47853229]
[1759617960234,0.01330641,122310.0,122300.0,0.47853229]
[1759617964925,0.01529641,122310.0,122300.0,0.47853229]
[1759617965757,0.01330641,122310.0,122300.0,0.47853229]
[1759617966179,0.01529641,122310.0,122300.0,0.47853229]
[1759617967660,0.01823641,122310.0,122300.0,0.47853229]
[1759617970283,0.01529641,122310.0,122300.0,0.47853229]
[1759617972299,0.01823641,122310.0,122300.0,0.47853229]
[1759617974642,0.02253379,122310.0,122300.0,0.47853229]
[1759617975385,0.01823641,122310.0,122300.0,0.47853229]
[1759617980949,0.01529641,122310.0,122300.0,0.47853229]
[1759617985515,0.01823641,122310.0,122300.0,0.23004]
[1759617986392,0.01823641,122310.0,122300.0,0.39357229]
[1759617986595,0.01823641,122310.0,122300.0,0.23004]
[1759617986975,0.0388845,122310.0,122300.0,0.23004]
[1759617987598,0.0388845,122310.0,122300.0,0.39357229]
[1759617988571,0.0388845,122310.0,122300.0,0.23004]
[1759617988771,0.0388845,122310.0,122300.0,0.39357229]
[1759617989594,0.0388845,122310.0,122290.0,0.25520076]
[1759617989804,0.19865491,122310.0,122300.0,3.662815]
[1759617990066,0.20254614,122310.0,122300.0,3.892855]
[1759617990269,0.20547614,122310.0,122300.0,0.23004]
[1759617990580,0.19947614,122310.0,122300.0,0.23004]
[1759617990786,0.20347614,122310.0,122300.0,0.23004]
[1759617991260,0.19947614,122310.0,122300.0,0.23004]
[1759617992273,0.23579447,122310.0,122300.0,0.23004]
[1759617992455,0.24179447,122310.0,122300.0,0.23004]
[1759617993068,0.20546964,122310.0,122300.0,0.23004]
[1759617999689,0.20546964,122310.0,122300.0,0.24110562]
[1759618000118,0.20628465,122310.0,122300.0,0.24110562]
[1759618001865,0.20628465,122310.0,122300.0,0.23004]
[1759618002073,0.20628465,122310.0,122300.0,0.24089012]
[1759618006900,0.04276573,122310.0,122300.0,0.24089012]
[1759618007097,0.20628465,122310.0,122300.0,0.24089012]
[1759618008396,0.03784573,122310.0,122300.0,0.23004]
[1759618008598,0.03784573,122310.0,122300.0,0.2353594]
[1759618009011,0.03784573,122310.0,122300.0,0.2406788]
[1759618009649,0.20136465,122310.0,122300.0,0.2406788]
[1759618011518,0.03784573,122310.0,122300.0,0.2406788]
[1759618012284,0.20346465,122310.0,122300.0,0.2406788]
[1759618013333,0.03784573,122310.0,122300.0,0.2406788]
[1759618014199,0.03994573,122310.0,122300.0,0.2406788]
[1759618014958,0.03994573,122310.0,122300.0,0.23004]
[1759618016317,0.03784573,122310.0,122300.0,0.39357229]
[1759618016628,0.03784573,122310.0,122300.0,0.23004]
[1759618016859,0.03994573,122310.0,122300.0,0.23004]
[1759618017018,0.04287573,122310.0,122300.0,0.23004]
[1759618024769,0.04287573,122310.0,122300.0,0.39357229]
[1759618028389,0.03994573,122310.0,122300.0,0.39357229]
[1759618028607,0.03784573,122310.0,122300.0,0.39357229]
[1759618036917,0.03993573,122310.0,122300.0,0.39357229]
[1759618037118,0.01539641,122310.0,122300.0,0.39357229]
[1759618037323,0.01864641,122310.0,122300.0,0.39357229]
[1759618038705,0.01539641,122310.0,122300.0,0.39357229]
[1759618040333,0.01539641,122310.0,122290.0,0.35680511]
[1759618040564,0.0145814,122310.0,122300.0,3.84270051]
[1759618040762,0.0145814,122310.0,122300.0,0.16353229]
[1759618040980,0.0145814,122310.0,122300.0,0.17988551]
[1759618041118,0.0085814,122310.0,122300.0,0.17988551]
[1759618041540,0.0125814,122310.0,122300.0,0.40988551]
[1759618041769,0.0125814,122310.0,122300.0,0.39353229]
[1759618041977,0.0065814,122310.0,122300.0,0.39353229]
[1759618042179,0.0095814,122310.0,122300.0,0.39353229]
[1759618042557,0.0025814,122310.0,122300.0,0.39353229]
[1759618042836,0.0085814,122310.0,122300.0,0.39353229]
[1759618042975,0.0178314,122310.0,122300.0,0.39353229]
[1759618046205,0.0145814,122310.0,122300.0,0.39353229]
[1759618046406,0.0336685,122310.0,122300.0,0.39353229]
[1759618046537,0.03448351,122310.0,122300.0,0.39353229]
[1759618052768,0.01539641,122310.0,122300.0,0.39353229]
[1759618054311,0.01330641,122310.0,122300.0,0.39353229]
[1759618057115,0.01330641,122310.0,122300.0,0.47849229]
[1759618057601,0.01532641,122310.0,122300.0,0.47849229]
[1759618057810,0.01852641,122310.0,122300.0,0.47849229]
[1759618063196,0.01532641,122310.0,122300.0,0.47849229]
[1759618063796,0.01330641,122310.0,122300.0,0.47849229]
[1759618066496,0.03378137,122310.0,122300.0,0.47849229]
[1759618070519,0.03580137,122310.0,122300.0,0.47849229]
[1759618070723,0.03900137,122310.0,122300.0,0.47849229]
[1759618073884,0.01852641,122310.0,122300.0,0.47849229]
[1759618078861,0.01532641,122310.0,122300.0,0.47849229]
[1759618079338,0.01852641,122310.0,122300.0,0.47849229]
[1759618083308,0.18204608,122310.0,122300.0,0.08496]
[1759618083520,0.01852641,122310.0,122300.0,0.31496]
[1759618083720,0.03920337,122310.0,122300.0,0.31496]
[1759618083958,0.03920337,122310.0,122290.0,0.26141351]
[1759618084157,0.03518836,122310.0,122300.0,3.977775]
[1759618084362,0.03834836,122310.0,122300.0,0.47849229]
[1759618084677,0.03916337,122310.0,122300.0,0.47849229]
[1759618085201,0.03316337,122310.0,122300.0,0.47849229]
[1759618085381,0.03316337,122310.0,122300.0,0.39353229]
[1759618085690,0.03716337,122310.0,122300.0,0.47849229]
[1759618085988,0.03316337,122310.0,122300.0,0.47849229]
[1759618086409,0.03916337,122310.0,122300.0,0.47849229]
[1759618087618,0.03916337,122310.0,122300.0,0.16353229]
[1759618087823,0.03916337,122310.0,122300.0,0.47849229]
[1759618088627,0.03916337,122310.0,122300.0,0.31496]
[1759618088979,0.20268229,122310.0,122300.0,0.31496]
[1759618089178,0.03916337,122310.0,122300.0,0.47849229]
[1759618089918,0.20268229,122310.0,122300.0,0.31496]
[1759618090132,0.03916337,122310.0,122300.0,0.47849229]
[1759618090759,0.20268229,122310.0,122300.0,0.47849229]
[1759618091096,0.20268229,122310.0,122300.0,0.31496]
[1759618091299,0.20268229,122310.0,122300.0,0.47849229]
[1759618091510,0.03916337,122310.0,122300.0,0.47849229]
[1759618093051,0.20268229,122310.0,122300.0,0.47849229]
[1759618093681,0.03916337,122310.0,122300.0,0.47849229]
[1759618094020,0.20268229,122310.0,122300.0,0.47849229]
[1759618094452,0.03916337,122310.0,122300.0,0.47849229]
[1759618095031,0.20268229,122310.0,122300.0,0.31496]
[1759618095628,0.20268229,122310.0,122300.0,0.47849229]
[1759618095796,0.2272197,122310.0,122300.0,0.47849229]
[1759618096122,0.2272197,122310.0,122300.0,0.31496]
[1759618096350,0.2272197,122310.0,122300.0,0.47849229]
[1759618097858,0.06370078,122310.0,122300.0,0.47849229]
[1759618099866,0.06054078,122310.0,122300.0,0.47849229]
[1759618100279,0.06370078,122310.0,122300.0,0.47849229]
[1759618102708,0.03784382,122310.0,122300.0,4.56442935]
[1759618102934,0.01330641,122310.0,122300.0,4.64508245]
[1759618103154,0.01330641,122310.0,122300.0,4.66961571]
[1759618104029,0.00730641,122310.0,122300.0,4.66961571]
[1759618104258,0.00730641,122310.0,122300.0,4.67161571]
[1759618104693,0.00130641,122310.0,122300.0,4.67161571]
[1759618105138,0.00130641,122310.0,122300.0,4.67361571]
[1759618110318,0.00130641,122310.0,122300.0,4.35865571]
[1759618110522,0.00130641,122310.0,122300.0,4.67381571]
[1759618111260,0.00130641,122310.0,122300.0,4.67377571]
[1759618112703,0.00130641,122310.0,122300.0,4.73576868]
[1759618123432,0.00130641,122310.0,122300.0,4.7284471]
[1759618128060,0.00130641,122310.0,122300.0,4.73508296]
[1759618132268,0.0002783,122310.0,122300.0,4.73508296]
[1759618132646,0.0002783,122310.0,122300.0,4.66175144]
[1759618138731,0.0002783,122310.0,122300.0,4.62986591]
[1759618140114,0.0002783,122310.0,122300.0,4.31474591]
[1759618140314,0.0002783,122310.0,122300.0,4.62978591]
[1759618146647,0.0002783,122310.0,122300.0,4.62997429]
[1759618148653,5.936e-05,122310.0,122300.0,4.62997429]
[1759618151137,5.936e-05,122310.0,122300.0,4.62978591]
[1759618152203,5.936e-05,122310.0,122300.0,4.6301406]
[1759618152814,5.936e-05,122310.0,122300.0,4.62350474]
[1759618154056,5.936e-05,122310.0,122300.0,4.62651192]
[1759618154433,5.936e-05,122310.0,122300.0,4.6295191]
[1759618158744,1.267e-05,122310.0,122300.0,4.6295191]
[1759618159792,1.267e-05,122310.0,122300.0,4.62916441]
[1759618161014,1.267e-05,122310.0,122300.0,4.62955259]
[1759618162020,1.267e-05,122310.0,122300.0,4.62916441]
[1759618162991,1.267e-05,122310.0,122300.0,4.62955259]
[1759618167532,1.267e-05,122310.0,122300.0,4.62916441]
[1759618167858,1.267e-05,122310.0,122300.0,4.62315005]
[1759618168629,1.267e-05,122310.0,122300.0,4.62381195]
[1759618168856,0.00336,122320.0,122310.0,0.50351892]
[1759618169083,0.00344034,122320.0,122310.0,4.63780402]
[1759618169211,0.00541034,122320.0,122310.0,4.63780402]
[1759618169413,0.00561404,122320.0,122310.0,4.63780402]
[1759618170105,0.00661404,122320.0,122310.0,4.63780402]
[1759618171017,0.00345404,122320.0,122310.0,4.63780402]
[1759618171825,0.00660404,122320.0,122310.0,4.63780402]
[1759618172059,0.00660404,122320.0,122310.0,4.63874587]
[1759618172533,0.00660404,122320.0,122310.0,4.63870587]
[1759618172885,0.00660404,122320.0,122310.0,4.32374587]
[1759618173076,0.00660404,122320.0,122310.0,4.63870587]
[1759618187396,0.00345404,122320.0,122310.0,4.63870587]
[1759618188444,0.00345404,122320.0,122310.0,4.63776402]
[1759618189704,0.00345404,122320.0,122310.0,4.63825061]
[1759618190309,0.00660404,122320.0,122310.0,4.63825061]
[1759618190731,0.00660404,122320.0,122310.0,4.63776402]
[1759618191720,0.00660404,122320.0,122310.0,4.63889425]
[1759618192804,0.00660404,122320.0,122310.0,4.63776402]
[1759618193810,0.00345404,122320.0,122310.0,4.63776402]
[1759618194016,0.00345404,122320.0,122310.0,4.63823869]
[1759618197204,0.00345404,122320.0,122310.0,4.63776402]
[1759618198331,0.00345404,122320.0,122310.0,4.63888658]
[1759618199741,0.17012959,122320.0,122310.0,4.55576452]
[1759618199955,0.17012959,122320.0,122310.0,4.48241648]
[1759618201710,0.17012959,122320.0,122310.0,4.48129392]
[1759618202730,0.17012959,122320.0,122310.0,4.48197388]
[1759618203676,0.17012959,122320.0,122310.0,4.16701388]
[1759618203894,0.17012959,122320.0,122310.0,3.80708706]
[1759618204129,0.17012959,122320.0,122310.0,4.03708706]
[1759618206186,0.17012959,122320.0,122310.0,3.97845496]
[1759618208980,0.20451182,122320.0,122310.0,0.00067996]
[1759618209180,0.20451182,122320.0,122310.0,0.23067996]
[1759618209532,0.20451182,122320.0,122310.0,0.23]
[1759618210553,0.20451182,122320.0,122310.0,0.23130337]
[1759618210751,0.28763388,122320.0,122310.0,0.23130337]
[1759618211568,0.28763388,122320.0,122310.0,0.23]
[1759618212579,0.28763388,122320.0,122310.0,0.23130337]
[1759618213809,0.28763388,122320.0,122310.0,0.23]
[1759618214842,0.28763388,122320.0,122310.0,0.23087324]
[1759618216267,0.31217172,122320.0,122310.0,0.23087324]
[1759618218295,0.31217172,122320.0,122310.0,0.23]
[1759618219310,0.31217172,122320.0,122310.0,0.23128659]
[1759618220301,0.31217172,122320.0,122310.0,0.23]
[1759618221476,0.31217172,122320.0,122310.0,0.23128659]
[1759618221704,0.31217172,122320.0,122310.0,0.00048861]
[1759618222904,0.31217172,122320.0,122310.0,0.23064861]
[1759618226019,0.31217172,122320.0,122310.0,0.23016]
[1759618227038,0.31217172,122320.0,122310.0,0.23104982]
[1759618228043,0.31217172,122320.0,122310.0,0.23016]
[1759618229203,0.31217172,122320.0,122310.0,0.23104982]
[1759618230145,0.31217172,122320.0,122310.0,0.23016]
[1759618231416,0.31217172,122320.0,122310.0,0.23053271]
[1759618234568,0.31217172,122320.0,122310.0,0.23016]
[1759618235744,0.31217172,122320.0,122310.0,0.231032]
[1759618236875,0.31217172,122320.0,122310.0,0.23016]
[1759618238085,0.27778949,122320.0,122310.0,0.231032]
[1759618238281,0.27264949,122320.0,122310.0,0.231032]
[1759618238697,0.27470949,122320.0,122310.0,0.231032]
[1759618238875,0.27770949,122320.0,122310.0,0.231032]
[1759618239083,0.27770949,122320.0,122310.0,0.23016]
[1759618239673,0.32284971,122320.0,122310.0,0.23016]
[1759618240348,0.32284971,122320.0,122310.0,0.23067091]
[1759618243294,0.31778971,122320.0,122310.0,0.23067091]
[1759618243495,0.27264949,122320.0,122310.0,0.23016]
[1759618243856,0.27770949,122320.0,122310.0,0.23016]
[1759618244651,0.27770949,122320.0,122310.0,0.23089542]
[1759618245652,0.27770949,122320.0,122310.0,0.23016]
[1759618246804,0.27770949,122320.0,122310.0,0.23089542]
[1759618246948,0.32284971,122320.0,122310.0,0.23089542]
[1759618247860,0.32284971,122320.0,122310.0,0.23016]
[1759618248305,0.27770949,122320.0,122310.0,0.23016]
[1759618249051,0.27770949,122320.0,122310.0,0.23067351]
[1759618251087,0.27770949,122320.0,122310.0,0.23016]
[1759618252281,0.27770949,122320.0,122310.0,0.23124574]
[1759618252725,0.18952743,122320.0,122310.0,0.23124574]
[1759618253268,0.19458743,122320.0,122310.0,0.23124574]
[1759618254440,0.21083346,122320.0,122310.0,0.23124574]
[1759618258254,0.19458743,122320.0,122310.0,0.23124574]
[1759618262834,0.19458743,122320.0,122310.0,0.00108574]
[1759618263037,0.19458743,122320.0,122310.0,0.31612574]
[1759618263311,0.19458743,122320.0,122310.0,0.37475784]
[1759618263461,0.19458743,122320.0,122310.0,0.31612574]
[1759618268234,0.23141544,122320.0,122310.0,0.31612574]
[1759618269351,0.19458743,122320.0,122310.0,0.31612574]
[1759618273422,0.17004959,122320.0,122310.0,0.31612574]
[1759618276283,0.1945866,122320.0,122310.0,0.31612574]
[1759618287406,0.1945866,122320.0,122310.0,0.23112574]
[1759618291548,0.1945866,122320.0,122310.0,0.28975784]
[1759618291743,0.23141453,122320.0,122310.0,0.28975784]
[1759618296090,0.1945866,122320.0,122300.0,0.33171891]
[1759618296833,0.1945866,122320.0,122300.0,0.27302748]
[1759618297089,0.1935866,122320.0,122300.0,0.27302748]
[1759618297293,0.1935866,122320.0,122310.0,0.23004]
[1759618298448,0.1945866,122320.0,122310.0,0.23004]
[1759618300925,0.23223199,122320.0,122310.0,0.23004]
[1759618301944,0.1945866,122320.0,122310.0,0.315]
[1759618315353,0.1945866,122320.0,122300.0,0.43559574]
[1759618315581,0.1945866,122320.0,122300.0,0.59912621]
[1759618315785,0.17004959,122320.0,122300.0,0.58849047]
[1759618316244,0.02453701,122310.0,122300.0,0.58849047]
[1759618316654,0.02453701,122310.0,122300.0,0.82253047]
[1759618317479,0.02453701,122310.0,122300.0,0.82053047]
[1759618317860,0.02453701,122310.0,122300.0,0.81853047]
[1759618318071,0.02453701,122310.0,122300.0,0.82053047]
[1759618318652,0.02453701,122310.0,122300.0,0.82253047]
[1759618322620,0.18805593,122310.0,122300.0,0.82253047]
[1759618323459,0.02453701,122310.0,122300.0,0.82253047]
[1759618324020,0.02650701,122310.0,122300.0,0.82253047]
[1759618324872,0.02453701,122310.0,122300.0,0.82253047]
[1759618330235,0.02650701,122310.0,122300.0,0.344]
[1759618330447,0.02650701,122310.0,122280.0,0.10296081]
[1759618330448,0.025,122290.0,122280.0,0.17630885]
[1759618330678,0.16359918,122250.0,122240.0,0.25100453]
[1759618330907,0.19869108,122250.0,122240.0,0.01956453]
[1759618331145,0.15069842,122210.0,122200.0,0.00314]
[1759618331430,0.15069842,122210.0,122200.0,3.665955]
[1759618331658,0.15563842,122210.0,122200.0,0.23156]
[1759618331869,0.1801959,122210.0,122200.0,0.2320514]
[1759618332082,0.1801959,122210.0,122200.0,0.24210601]
[1759618332518,0.1882102,122210.0,122200.0,3.91019101]
[1759618333010,0.02455748,122210.0,122200.0,3.91019101]
[1759618333411,0.02655748,122210.0,122200.0,3.91019101]
[1759618334881,0.1902102,122210.0,122200.0,3.91019101]
[1759618335499,0.04174299,122210.0,122200.0,3.91019101]
[1759618335698,0.20539571,122210.0,122200.0,3.91019101]
[1759618336103,0.18083823,122210.0,122200.0,3.91019101]
[1759618336457,0.18083823,122210.0,122200.0,3.9122302]
[1759618339202,0.18083823,122210.0,122200.0,4.2522302]
[1759618341209,0.16565272,122210.0,122200.0,4.2522302]
[1759618347805,0.16565272,122210.0,122200.0,4.2521902]
[1759618348033,0.16565272,122210.0,122200.0,4.3372302]
[1759618360408,0.18864308,122210.0,122200.0,4.3372302]
[1759618362019,0.18864308,122210.0,122200.0,4.3371102]
[1759618362775,0.17331617,122210.0,122200.0,4.3371102]
[1759618375837,0.17331617,122210.0,122200.0,4.50077632]
[1759618377114,0.17331617,122210.0,122200.0,4.3371102]
[1759618377323,0.17331617,122210.0,122200.0,4.50077632]
[1759618378167,0.17331617,122210.0,122200.0,4.3371102]
[1759618378781,0.17331617,122210.0,122200.0,4.50077632]
[1759618379733,0.17331617,122210.0,122200.0,4.3371102]
[1759618380271,0.17331617,122210.0,122200.0,4.50077632]
[1759618380478,0.17331617,122210.0,122200.0,4.3371102]
[1759618381716,0.17331617,122210.0,122200.0,4.50077632]
[1759618382684,0.002,122210.0,122200.0,4.50077632]
[1759618384163,0.002,122210.0,122200.0,4.55962968]
[1759618388283,0.002,122210.0,122200.0,4.50077632]
[1759618389314,0.002,122210.0,122200.0,4.57412436]
[1759618390329,0.002,122210.0,122200.0,4.50077632]
[1759618390983,0.002,122210.0,122200.0,4.57412436]
[1759618391404,0.002,122210.0,122200.0,4.50077632]
[1759618393556,0.002,122210.0,122200.0,4.57412436]
[1759618396954,0.002,122210.0,122200.0,4.25768436]
[1759618397168,0.002,122210.0,122200.0,4.57380436]
[1759618408960,0.002,122210.0,122200.0,4.65692642]
[1759618409521,0.002,122210.0,122200.0,4.68147922]
[1759618410243,0.00040084,122210.0,122200.0,4.68147922]
[1759618410400,0.00040084,122210.0,122200.0,4.60813118]
[1759618410812,0.00040084,122210.0,122200.0,4.71109199]
[1759618411681,0.09105045,122240.0,122230.0,0.34]
[1759618411838,0.09105045,122240.0,122230.0,0.82483595]
[1759618412023,0.09105045,122240.0,122230.0,0.82626303]
[1759618412827,0.09505045,122240.0,122230.0,0.82626303]
[1759618413007,0.10005045,122240.0,122230.0,0.82626303]
[1759618413156,0.0335528,122240.0,122230.0,0.82626303]
[1759618419648,0.0356128,122240.0,122230.0,0.82626303]
[1759618419872,0.0335528,122240.0,122230.0,0.82626303]
[1759618420926,0.0335528,122240.0,122230.0,0.66263708]
[1759618421164,0.0335528,122240.0,122230.0,0.34655708]
[1759618421387,0.0356128,122240.0,122230.0,0.34357708]
[1759618421605,0.19922536,122240.0,122230.0,0.65742708]
[1759618421845,0.0356128,122240.0,122230.0,0.65742708]
[1759618425726,0.0356128,122240.0,122230.0,0.34142708]
[1759618425946,0.0356128,122240.0,122230.0,0.65738708]
[1759618426996,0.0356128,122240.0,122230.0,0.65734708]
[1759618431333,0.0356128,122240.0,122230.0,0.34142708]
[1759618431538,0.0356128,122240.0,122230.0,0.65734708]
[1759618433857,0.0356128,122240.0,122230.0,0.31807]
[1759618437388,0.05585401,122240.0,122230.0,0.31807]
[1759618439660,0.05585401,122240.0,122230.0,0.23295]
[1759618439781,0.05585401,122240.0,122230.0,0.31799]
[1759618441026,0.21946657,122240.0,122230.0,0.31799]
[1759618441242,0.21946657,122240.0,122220.0,0.22538605]
[1759618441504,0.21946657,122240.0,122230.0,3.978655]
[1759618441719,0.21946657,122240.0,122230.0,0.31584]
[1759618441916,0.05585401,122240.0,122230.0,0.31798]
[1759618442231,0.05185401,122240.0,122230.0,0.31798]
[1759618442374,0.05285401,122240.0,122230.0,0.31798]
[1759618442783,0.21646657,122240.0,122230.0,0.31798]
[1759618442987,0.05185401,122240.0,122230.0,0.31798]
[1759618443246,0.05585401,122240.0,122230.0,0.31798]
[1759618443860,0.05585401,122240.0,122230.0,0.37674788]
[1759618445301,0.05585401,122240.0,122230.0,0.37979788]
[1759618446043,0.05585401,122240.0,122230.0,0.37674788]
[1759618447518,0.05585401,122240.0,122230.0,0.37979788]
[1759618448348,0.05585401,122240.0,122230.0,0.37674788]
[1759618449358,0.05585401,122240.0,122230.0,0.37979788]
[1759618449913,0.05585401,122240.0,122230.0,0.37674788]
[1759618454248,0.05585401,122240.0,122230.0,0.37979788]
[1759618454818,0.05379401,122240.0,122230.0,0.37979788]
[1759618456382,0.0335528,122240.0,122230.0,0.54342383]
[1759618458278,0.0335528,122240.0,122230.0,0.37979788]
[1759618459552,0.0335528,122240.0,122230.0,0.54342383]
[1759618462333,0.0335528,122240.0,122230.0,0.54315283]
[1759618463266,0.0335528,122240.0,122230.0,0.37952688]
[1759618464183,0.0335528,122240.0,122230.0,0.54315283]
[1759618466088,0.0335528,122240.0,122230.0,0.37952688]
[1759618475710,0.19716536,122240.0,122230.0,0.37952688]
[1759618476912,0.0335528,122240.0,122230.0,0.37952688]
[1759618477391,0.21280766,122240.0,122230.0,0.37952688]
[1759618477832,0.0491951,122240.0,122230.0,0.37952688]
[1759618478283,0.21280766,122240.0,122230.0,0.37952688]
[1759618478847,0.0491951,122240.0,122230.0,0.37952688]
[1759618479470,0.0335528,122240.0,122230.0,0.37952688]
[1759618481680,0.0335528,122240.0,122230.0,0.06368688]
[1759618481882,0.0335528,122240.0,122230.0,0.39564947]
[1759618482181,0.0335528,122240.0,122230.0,0.37928688]
[1759618486240,0.19716536,122240.0,122230.0,0.37928688]
[1759618489699,0.0335528,122240.0,122230.0,0.37928688]
[1759618495287,0.19716536,122240.0,122230.0,0.37928688]
[1759618496096,0.0335528,122240.0,122230.0,0.37928688]
[1759618497799,0.19716536,122240.0,122230.0,0.37928688]
[1759618500317,0.0335528,122240.0,122230.0,0.37928688]
[1759618502821,0.19716536,122240.0,122230.0,0.37928688]
[1759618504057,0.19919536,122240.0,122230.0,0.08504]
[1759618504225,0.19919536,122240.0,122230.0,0.10353259]
[1759618504430,0.19919536,122240.0,122230.0,0.08717]
[1759618505208,0.19919536,122240.0,122230.0,0.10353259]
[1759618505413,0.19919536,122240.0,122230.0,0.33405259]
[1759618505650,0.19919536,122240.0,122230.0,0.31769]
[1759618507102,0.0355828,122240.0,122230.0,0.31769]
[1759618507288,0.19919536,122240.0,122230.0,0.31769]
[1759618507757,0.0355828,122240.0,122230.0,0.31769]
[1759618509277,0.19919536,122240.0,122230.0,0.31769]
[1759618517873,0.23873085,122240.0,122220.0,0.36779189]
[1759618518146,0.23873085,122240.0,122230.0,3.978375]
[1759618518368,0.21417805,122240.0,122230.0,0.31556]
[1759618518580,0.23872994,122240.0,122230.0,0.31556]
[1759618518760,0.23472994,122240.0,122230.0,0.31556]
[1759618519128,0.23572994,122240.0,122230.0,0.31556]
[1759618519333,0.23072994,122240.0,122230.0,0.31556]
[1759618519544,0.22972994,122240.0,122230.0,0.31556]
[1759618519718,0.23172994,122240.0,122230.0,0.31556]
[1759618519922,0.23372994,122240.0,122220.0,0.53143034]
[1759618520116,0.23372994,122240.0,122230.0,3.978375]
[1759618520326,0.17760256,122240.0,122230.0,0.31556]
[1759618520541,0.20215445,122240.0,122220.0,0.53143034]
[1759618520740,0.20215445,122240.0,122230.0,3.893335]
[1759618520971,0.17760256,122240.0,122220.0,0.53143034]
[1759618521180,0.19815445,122240.0,122230.0,3.893335]
[1759618521420,0.17460256,122240.0,122230.0,0.23052]
[1759618521831,0.19915445,122240.0,122230.0,0.23052]
[1759618522045,0.23624784,122240.0,122230.0,0.23052]
[1759618522410,0.23124784,122240.0,122230.0,0.23052]
[1759618522616,0.23224784,122240.0,122230.0,0.23052]
[1759618522822,0.23024784,122240.0,122230.0,0.23052]
[1759618523037,0.23424784,122240.0,122230.0,0.23052]
[1759618523256,0.23924784,122240.0,122230.0,0.23052]
[1759618524286,0.23924784,122240.0,122230.0,0.39627595]
[1759618524287,0.03355189,122240.0,122230.0,0.39627595]
[1759618524490,0.009,122240.0,122230.0,0.50874927]
[1759618524788,0.009,122240.0,122230.0,4.19611409]
[1759618525901,0.009,122240.0,122230.0,4.42659409]
[1759618532833,0.009,122240.0,122230.0,4.50971615]
[1759618533241,0.009,122240.0,122230.0,4.583176]
[1759618534076,0.005,122240.0,122230.0,4.583176]
[1759618534492,0.006,122240.0,122230.0,4.583176]
[1759618534885,0.001,122240.0,122230.0,4.583176]
[1759618535326,0.003,122240.0,122230.0,4.583176]
[1759618540864,0.002,122240.0,122230.0,4.583176]
[1759618541077,0.26283105,122270.0,122250.0,0.1635874]
[1759618541308,0.26283105,122270.0,122260.0,3.99973358]
[1759618541520,0.25461598,122270.0,122260.0,4.1469608]
[1759618541933,0.25461598,122270.0,122260.0,4.17150655]
[1759618542361,0.19611833,122270.0,122260.0,4.17199795]
[1759618543016,0.20011833,122270.0,122260.0,4.17199795]
[1759618543400,0.19611833,122270.0,122260.0,4.17199795]
[1759618543610,0.20211833,122270.0,122260.0,4.17199795]
[1759618544232,0.20211833,122270.0,122260.0,4.00841215]
[1759618544438,0.20211833,122270.0,122260.0,4.17199795]
[1759618545093,0.20211833,122270.0,122260.0,4.18070726]
[1759618545472,0.20211833,122270.0,122260.0,4.01712146]
[1759618545894,0.20211833,122270.0,122260.0,4.18070726]
[1759618547888,0.17757242,122270.0,122260.0,4.18066726]
[1759618548236,0.01515899,122270.0,122260.0,4.18066726]
[1759618548439,0.17873141,122270.0,122260.0,4.18066726]
[1759618548771,0.01515899,122270.0,122260.0,4.18066726]
[1759618549390,0.17873141,122270.0,122260.0,4.18066726]
[1759618550626,0.01515899,122270.0,122260.0,4.18066726]
[1759618551055,0.01515899,122270.0,122260.0,3.86522726]
[1759618551235,0.01515899,122270.0,122260.0,4.18066726]
[1759618559184,0.01515899,122270.0,122260.0,4.23927985]
[1759618565660,0.01515899,122270.0,122260.0,4.15427985]
[1759618565834,0.01515899,122270.0,122260.0,4.23927985]
[1759618570019,0.01515899,122270.0,122260.0,3.92383985]
[1759618570236,0.01515899,122270.0,122260.0,4.23927985]
[1759618576957,0.01515899,122270.0,122260.0,4.2147341]
[1759618578867,0.18087141,122270.0,122260.0,4.1267241]
[1759618579089,0.18404141,122270.0,122260.0,4.2096541]
[1759618579283,0.18404141,122270.0,122260.0,3.8942141]
[1759618579539,0.18404141,122270.0,122260.0,4.2096541]
[1759618581001,0.01515899,122270.0,122260.0,4.57936357]
[1759618581218,0.01515899,122270.0,122260.0,4.65282342]
[1759618581433,0.01515899,122270.0,122260.0,4.67736553]